bitfinex-derivatives/quotes_BTCF0:USTF0_20250722
["timestamp","ask_amount","ask_price","bid_price","bid_amount"]
[1753143352572,0.1,117470.0,117460.0,2.10934742]
[1753143354274,0.1,117470.0,117460.0,2.10834742]
[1753143354475,0.1,117470.0,117460.0,2.11034742]
[1753143355072,0.1,117470.0,117460.0,2.10834742]
[1753143355276,0.101,117470.0,117460.0,1.93840479]
[1753143355476,0.0747015,117470.0,117460.0,1.93840479]
[1753143355677,0.0747015,117470.0,117460.0,2.23480479]
[1753143356070,0.0747015,117470.0,117460.0,2.2577794]
[1753143361273,0.0747015,117470.0,117460.0,0.96973135]
[1753143361474,0.0794115,117470.0,117460.0,1.3140994]
[1753143361674,0.1169215,117470.0,117460.0,0.96973135]
[1753143361877,0.85295955,117470.0,117460.0,1.25189428]
[1753143362077,0.85295955,117470.0,117460.0,1.28243947]
[1753143362267,0.5218815,117470.0,117460.0,1.28243947]
[1753143362467,0.5085915,117470.0,117460.0,1.28243947]
[1753143363276,0.4777215,117470.0,117460.0,1.62680752]
[1753143363985,0.4777215,117470.0,117460.0,1.59626233]
[1753143364980,0.4777215,117470.0,117460.0,1.25189428]
[1753143365280,0.4777215,117470.0,117460.0,1.59626233]
[1753143365975,0.4878515,117470.0,117460.0,1.59626233]
[1753143368582,0.4878515,117470.0,117460.0,1.25189428]
[1753143368784,0.4878515,117470.0,117460.0,1.59626233]
[1753143369583,0.4777215,117470.0,117460.0,1.59626233]
[1753143370384,0.0747015,117470.0,117460.0,1.59626233]
[1753143370885,0.0747015,117470.0,117460.0,1.59726233]
[1753143370886,0.0847015,117470.0,117460.0,1.59726233]
[1753143371081,0.4455015,117470.0,117460.0,1.59726233]
[1753143371281,0.0847015,117470.0,117460.0,1.59726233]
[1753143372085,0.0847015,117470.0,117460.0,1.55137796]
[1753143372388,0.1096562,117470.0,117460.0,1.95804593]
[1753143372588,0.1096562,117470.0,117460.0,1.91217796]
[1753143373286,0.1096562,117470.0,117460.0,2.20857796]
[1753143373886,0.0200876,117470.0,117460.0,2.26987959]
[1753143374085,0.3608,117490.0,117480.0,0.2135859]
[1753143374288,0.3608,117490.0,117480.0,1.59718059]
[1753143374289,0.4808,117490.0,117480.0,1.59718059]
[1753143374486,0.12,117490.0,117480.0,1.66574227]
[1753143374687,0.12,117490.0,117480.0,1.68867798]
[1753143375997,0.12,117490.0,117480.0,1.64380657]
[1753143376884,0.128,117490.0,117480.0,1.67943139]
[1753143385594,0.128,117490.0,117480.0,1.69486161]
[1753143385997,0.128,117490.0,117480.0,1.63355998]
[1753143387595,0.0307694,117490.0,117480.0,1.97792803]
[1753143387796,0.008,117490.0,117480.0,1.97792803]
[1753143388195,1e-07,117490.0,117480.0,2.33872803]
[1753143388797,0.0900001,117490.0,117480.0,2.33872803]
[1753143390288,0.0900001,117490.0,117480.0,2.40002966]
[1753143390886,1e-07,117490.0,117480.0,2.33103966]
[1753143391091,1e-07,117490.0,117480.0,2.62743966]
[1753143391393,1e-07,117490.0,117480.0,1.93870356]
[1753143391593,1e-07,117490.0,117480.0,2.62743966]
[1753143393092,1e-07,117490.0,117480.0,2.79767166]
[1753143395698,1e-07,117490.0,117480.0,2.62743966]
[1753143396497,1e-07,117490.0,117480.0,2.56613803]
[1753143397992,1e-07,117490.0,117480.0,2.79747759]
[1753143398302,1e-07,117490.0,117480.0,2.73637003]
[1753143398496,0.3608,117530.0,117520.0,0.2085181]
[1753143398692,0.4708,117530.0,117520.0,1.47669093]
[1753143398893,0.4708,117530.0,117520.0,1.54568093]
[1753143399190,0.11,117530.0,117520.0,1.54568093]
[1753143399499,0.11,117530.0,117520.0,1.57623397]
[1753143400201,0.12,117530.0,117520.0,1.57723397]
[1753143400398,0.124,117530.0,117520.0,1.57823397]
[1753143400600,0.124,117530.0,117520.0,1.55531919]
[1753143402803,0.119,117530.0,117520.0,1.9386817]
[1753143403201,0.119,117530.0,117520.0,1.5778817]
[1753143403701,0.119,117530.0,117520.0,1.60841787]
[1753143404395,0.119,117530.0,117520.0,1.60841571]
[1753143406000,0.119,117530.0,117520.0,1.90481571]
[1753143407791,0.119,117530.0,117520.0,1.56044766]
[1753143407996,0.119,117530.0,117520.0,1.90481571]
[1753143410607,0.119,117530.0,117520.0,2.60998376]
[1753143411108,0.119,117530.0,117520.0,2.26561571]
[1753143411310,0.119,117530.0,117520.0,2.60998376]
[1753143411607,0.119,117530.0,117520.0,2.53362019]
[1753143414604,0.119,117530.0,117520.0,2.18925214]
[1753143415104,0.119,117530.0,117520.0,2.53362019]
[1753143415302,0.0815147,117530.0,117520.0,2.53362019]
[1753143415605,0.3608,117550.0,117540.0,0.2841192]
[1753143415805,0.4608,117550.0,117540.0,1.55504901]
[1753143417004,0.4608,117550.0,117540.0,1.85144901]
[1753143417208,0.11,117550.0,117540.0,1.85244901]
[1753143417509,0.113,117550.0,117540.0,1.85244901]
[1753143417806,0.112,117550.0,117540.0,1.92170775]
[1753143418004,0.109,117550.0,117540.0,1.92170775]
[1753143418306,0.111,117550.0,117540.0,1.92170775]
[1753143418700,0.111,117550.0,117540.0,2.3282904]
[1753143420409,0.39401,117570.0,117560.0,0.2840902]
[1753143420610,0.52401,117570.0,117560.0,1.56421825]
[1753143421203,0.13,117570.0,117560.0,1.9085863]
[1753143421507,0.003,117570.0,117560.0,1.95017984]
[1753143421815,0.003,117570.0,117560.0,2.24657984]
[1753143422307,0.39401,117590.0,117580.0,0.2736013]
[1753143422611,0.52562,117590.0,117580.0,1.2270213]
[1753143422814,0.52562,117590.0,117580.0,1.57138935]
[1753143423112,0.4708,117590.0,117580.0,1.58717405]
[1753143423316,0.0857303,117590.0,117580.0,1.58717405]
[1753143423514,0.7108472,117590.0,117580.0,0.449846]
[1753143423714,0.88620835,117590.0,117580.0,1.043166]
[1753143423902,1.05621525,117590.0,117580.0,0.412136]
[1753143424214,1.22630325,117590.0,117580.0,0.3170213]
[1753143424412,1.22530325,117590.0,117580.0,0.3170213]
[1753143424808,1.22530325,117590.0,117580.0,0.3180213]
[1753143426517,1.22530325,117590.0,117580.0,0.3529513]
[1753143426815,1.81862325,117590.0,117580.0,0.3529513]
[1753143427217,1.22530325,117590.0,117580.0,0.3529513]
[1753143427411,1.22530325,117590.0,117580.0,0.37583688]
[1753143428516,1.22530325,117590.0,117580.0,0.37569837]
[1753143429704,1.05521525,117590.0,117580.0,0.37569837]
[1753143431615,1.05521525,117590.0,117580.0,0.40091837]
[1753143431914,0.5013503,117590.0,117580.0,0.98917642]
[1753143432119,0.4797403,117590.0,117580.0,0.98917642]
[1753143432619,0.4797403,117590.0,117580.0,0.99773427]
[1753143435015,0.5013503,117590.0,117580.0,0.65773427]
[1753143435223,1.05626535,117590.0,117580.0,0.38091837]
[1753143435417,1.64866535,117590.0,117580.0,0.38091837]
[1753143435620,1.64866535,117590.0,117580.0,0.33281279]
[1753143435920,1.657365,117590.0,117580.0,0.33281279]
[1753143436823,1.64866535,117590.0,117580.0,0.33281279]
[1753143438429,2.06875335,117590.0,117580.0,0.001]
[1753143438628,0.2651114,117580.0,117570.0,0.19291238]
[1753143438933,1.08027945,117580.0,117570.0,0.19291238]
[1753143439118,1.25038345,117580.0,117570.0,0.19291238]
[1753143439629,1.25038345,117580.0,117570.0,0.19391238]
[1753143441728,1.50038345,117580.0,117570.0,0.01309558]
[1753143441925,1.50038345,117580.0,117570.0,0.18313158]
[1753143442435,1.50038345,117580.0,117570.0,0.171036]
[1753143443328,1.25038345,117580.0,117570.0,0.171036]
[1753143450838,1.25038345,117580.0,117570.0,0.001]
[1753143451024,1.25038345,117580.0,117570.0,0.1710359]
[1753143454540,1.25038345,117580.0,117570.0,0.2039059]
[1753143455440,1.25038345,117580.0,117570.0,0.1710359]
[1753143456040,1.25038345,117580.0,117570.0,0.2039059]
[1753143456533,0.9060154,117580.0,117570.0,0.2039059]
[1753143456736,1.25038345,117580.0,117570.0,0.2299259]
[1753143458640,1.08027945,117580.0,117570.0,0.2299259]
[1753143460142,0.7359114,117580.0,117570.0,0.2299259]
[1753143460443,1.08027945,117580.0,117570.0,0.2402259]
[1753143461242,0.7359114,117580.0,117570.0,0.2402259]
[1753143461541,1.08027945,117580.0,117570.0,0.2402259]
[1753143462437,1.08027945,117580.0,117570.0,0.2299259]
[1753143467442,1.08027945,117580.0,117570.0,0.2396359]
[1753143470549,1.08027945,117580.0,117570.0,0.2622959]
[1753143470747,1.08027945,117580.0,117570.0,0.2845759]
[1753143471141,0.52535,117580.0,117570.0,0.65509359]
[1753143471342,1.10698,117580.0,117570.0,0.65509359]
[1753143471541,1.45134805,117580.0,117570.0,0.65509359]
[1753143471741,1.10698,117580.0,117570.0,0.65509359]
[1753143472244,1.10698,117580.0,117570.0,0.31509359]
[1753143472549,1.10698,117580.0,117570.0,0.69509359]
[1753143474251,1.10698,117580.0,117570.0,0.31509359]
[1753143474550,1.10698,117580.0,117570.0,0.36087624]
[1753143475144,1.46145805,117580.0,117570.0,0.36087624]
[1753143475450,1.48420805,117580.0,117570.0,0.36087624]
[1753143475950,1.48420805,117580.0,117570.0,0.31509359]
[1753143479550,1.48420805,117580.0,117570.0,0.68509359]
[1753143480951,1.48420805,117580.0,117570.0,0.31509359]
[1753143481256,1.65422945,117580.0,117570.0,0.31509359]
[1753143481550,1.66967945,117580.0,117570.0,0.31509359]
[1753143482655,1.10698,117580.0,117570.0,0.74087624]
[1753143482954,1.10678,117580.0,117570.0,0.74087624]
[1753143484954,1.10678,117580.0,117570.0,0.69509359]
[1753143485849,0.5151,117580.0,117570.0,0.69509359]
[1753143486052,0.4708,117580.0,117570.0,1.0547266]
[1753143486449,0.48676,117580.0,117570.0,1.08531817]
[1753143487055,0.48676,117580.0,117570.0,1.6460866]
[1753143487260,0.48676,117580.0,117570.0,1.33230434]
[1753143487854,0.4708,117580.0,117570.0,1.33230434]
[1753143489562,0.48676,117580.0,117570.0,1.33230434]
[1753143490559,0.48676,117580.0,117570.0,1.67667239]
[1753143490864,0.49204,117580.0,117570.0,0.36094434]
[1753143491062,0.49204,117580.0,117570.0,1.32218434]
[1753143491260,0.49204,117580.0,117570.0,1.27640169]
[1753143491766,0.51459,117580.0,117570.0,1.32218434]
[1753143491954,0.51459,117580.0,117570.0,1.27640169]
[1753143492159,0.51459,117580.0,117570.0,1.32218434]
[1753143492360,0.51459,117580.0,117570.0,1.27640169]
[1753143492865,0.51459,117580.0,117570.0,1.32218434]
[1753143493067,0.51459,117580.0,117570.0,1.27640169]
[1753143493460,0.51459,117580.0,117570.0,1.32218434]
[1753143493763,0.51459,117580.0,117570.0,1.27640169]
[1753143494365,0.51459,117580.0,117570.0,1.32218434]
[1753143495164,0.4708,117580.0,117570.0,1.66655239]
[1753143495365,0.4708,117580.0,117570.0,1.6359666]
[1753143497867,0.11,117580.0,117570.0,1.6359666]
[1753143502567,0.3608,117590.0,117580.0,0.1700215]
[1753143502769,0.02,117590.0,117580.0,1.01965515]
[1753143502969,0.02,117590.0,117580.0,1.06215995]
[1753143503778,0.021,117590.0,117580.0,1.06215995]
[1753143504974,0.021,117590.0,117580.0,1.06315995]
[1753143506267,0.021,117590.0,117580.0,1.1089426]
[1753143507073,0.021,117590.0,117580.0,1.13952272]
[1753143507275,0.021,117590.0,117580.0,1.1089426]
[1753143507874,0.021,117590.0,117580.0,1.4697426]
[1753143512185,0.021,117590.0,117580.0,1.12537455]
[1753143512383,0.021,117590.0,117580.0,1.4697426]
[1753143512783,0.021,117590.0,117580.0,1.48506603]
[1753143513883,0.021,117590.0,117580.0,1.42395995]
[1753143514186,0.021,117590.0,117580.0,1.0795919]
[1753143514384,0.3818,117590.0,117580.0,1.65371995]
[1753143514682,0.43491,117590.0,117580.0,1.65775995]
[1753143514883,0.46726,117590.0,117580.0,1.65775995]
[1753143515085,0.43491,117590.0,117580.0,1.65775995]
[1753143519995,0.43491,117590.0,117580.0,1.3133919]
[1753143520287,0.3818,117590.0,117580.0,1.65775995]
[1753143521691,0.39185,117590.0,117580.0,1.65775995]
[1753143522886,0.3818,117590.0,117580.0,1.65775995]
[1753143523292,0.021,117590.0,117580.0,1.65775995]
[1753143527489,0.021,117590.0,117580.0,1.71886603]
[1753143529789,0.021,117590.0,117580.0,2.07966603]
[1753143534896,1.00756535,117590.0,117580.0,0.7089319]
[1753143535103,1.00756535,117590.0,117580.0,1.3008519]
[1753143535598,1.00756535,117590.0,117580.0,0.04683533]
[1753143535905,1.00756535,117590.0,117580.0,0.20630703]
[1753143536301,1.00756535,117590.0,117580.0,0.23687057]
[1753143536504,1.00756535,117590.0,117580.0,0.20630703]
[1753143536695,1.00756535,117590.0,117580.0,0.23687244]
[1753143537198,1.00756535,117590.0,117580.0,0.19295172]
[1753143537500,1.00756535,117590.0,117580.0,0.1700217]
[1753143537699,1.00756535,117590.0,117580.0,0.19295172]
[1753143538502,1.00756535,117590.0,117580.0,0.1700217]
[1753143539202,1.00756535,117590.0,117570.0,0.19645943]
[1753143539203,0.2135017,117580.0,117570.0,0.36648423]
[1753143539403,1.68837975,117580.0,117570.0,0.36648423]
[1753143540302,1.68837975,117580.0,117570.0,0.36748423]
[1753143540503,1.68837975,117580.0,117570.0,0.36848423]
[1753143541110,1.68837975,117580.0,117570.0,0.23746082]
[1753143541403,0.2310206,117560.0,117550.0,0.30942181]
[1753143541617,2.4030967,117560.0,117550.0,0.39565181]
[1753143543508,2.05988865,117560.0,117550.0,0.39565181]
[1753143543808,1.46840865,117560.0,117550.0,0.50633181]
[1753143544002,1.7156006,117560.0,117550.0,0.50633181]
[1753143544505,1.93996865,117560.0,117550.0,0.39633181]
[1753143544705,1.93996865,117560.0,117550.0,0.36996181]
[1753143544908,1.93996865,117560.0,117550.0,0.46367181]
[1753143544909,2.06996865,117560.0,117550.0,0.46367181]
[1753143546509,2.06996865,117560.0,117550.0,0.4493964]
[1753143548108,2.05996865,117560.0,117550.0,0.4393964]
[1753143548514,2.05996865,117560.0,117550.0,0.4657664]
[1753143552714,2.05980865,117560.0,117550.0,0.4657664]
[1753143554813,2.05980865,117560.0,117550.0,0.4441964]
[1753143558119,2.4041767,117560.0,117550.0,0.3125702]
[1753143558316,0.1700796,117540.0,117530.0,0.3651488]
[1753143558510,2.06097765,117540.0,117530.0,0.3226263]
[1753143559521,2.06097765,117540.0,117530.0,0.3665663]
[1753143559723,2.06097765,117540.0,117530.0,0.3695663]
[1753143560022,2.06097765,117540.0,117530.0,0.3705663]
[1753143563026,2.06097765,117540.0,117530.0,0.3805663]
[1753143564529,2.06097765,117540.0,117530.0,0.41113171]
[1753143565122,1.89089805,117540.0,117530.0,0.3805663]
[1753143565330,1.89089805,117540.0,117530.0,0.41113171]
[1753143567333,1.29965805,117540.0,117530.0,0.41113171]
[1753143567532,1.89005805,117540.0,117530.0,0.41113171]
[1753143568234,1.54569,117540.0,117530.0,0.41113171]
[1753143568433,1.29965805,117540.0,117530.0,0.41113171]
[1753143568631,1.89452805,117540.0,117530.0,0.72113171]
[1753143568834,1.89452805,117540.0,117530.0,0.42113171]
[1753143569234,1.89460805,117540.0,117530.0,0.40113171]
[1753143569434,1.89460805,117540.0,117530.0,0.42113171]
[1753143569935,1.30408805,117540.0,117530.0,0.40113171]
[1753143570235,1.30408805,117540.0,117530.0,0.78679793]
[1753143570236,1.89452805,117540.0,117530.0,0.78679793]
[1753143570736,1.89452805,117540.0,117530.0,0.42113171]
[1753143571034,1.89452805,117540.0,117530.0,0.77113171]
[1753143571236,1.89452805,117540.0,117530.0,0.78623252]
[1753143571433,1.89452805,117540.0,117530.0,0.43623252]
[1753143571633,1.89452805,117540.0,117530.0,0.46680794]
[1753143572429,1.89432805,117540.0,117530.0,0.82680794]
[1753143572632,1.89432805,117540.0,117530.0,0.46680794]
[1753143572832,1.89432805,117540.0,117530.0,0.75623252]
[1753143573032,1.89432805,117540.0,117530.0,0.44623252]
[1753143573233,1.89432805,117540.0,117530.0,0.41623252]
[1753143573529,1.89432805,117540.0,117530.0,0.44623252]
[1753143573530,1.89428805,117540.0,117530.0,0.44623252]
[1753143573932,1.89428805,117540.0,117530.0,0.47681596]
[1753143574141,1.89428805,117540.0,117530.0,0.44623252]
[1753143574341,1.54992,117540.0,117530.0,0.44623252]
[1753143574535,1.89428805,117540.0,117530.0,0.44623252]
[1753143575440,1.89428805,117540.0,117530.0,0.41623252]
[1753143575631,1.89428805,117540.0,117530.0,0.44623252]
[1753143576041,1.89428805,117540.0,117530.0,0.78623252]
[1753143576643,1.89428805,117540.0,117530.0,0.45623252]
[1753143577541,1.89428805,117540.0,117530.0,0.74623252]
[1753143578440,1.30408805,117540.0,117530.0,0.74623252]
[1753143578642,1.89388805,117540.0,117530.0,0.45623252]
[1753143578842,1.89380805,117540.0,117530.0,0.45623252]
[1753143579339,1.89380805,117540.0,117530.0,0.41623252]
[1753143579536,1.89380805,117540.0,117530.0,0.45623252]
[1753143579733,1.89380805,117540.0,117530.0,0.73623252]
[1753143582744,1.89380805,117540.0,117530.0,0.46623252]
[1753143584137,1.54944,117540.0,117530.0,0.46623252]
[1753143584435,1.89380805,117540.0,117530.0,0.46623252]
[1753143584632,1.54944,117540.0,117530.0,0.46623252]
[1753143584837,1.89380805,117540.0,117530.0,0.46623252]
[1753143585939,2.06388765,117540.0,117530.0,0.46623252]
[1753143586139,1.89380805,117540.0,117530.0,0.46623252]
[1753143590146,2.06388765,117540.0,117530.0,0.46623252]
[1753143591546,1.7195196,117540.0,117530.0,0.46623252]
[1753143591748,0.95972,117540.0,117530.0,0.46623252]
[1753143591939,0.86214,117540.0,117530.0,1.13060057]
[1753143592142,0.84603,117540.0,117530.0,0.78623252]
[1753143592335,0.84603,117540.0,117530.0,1.08493435]
[1753143592746,0.88471,117540.0,117530.0,1.08493435]
[1753143593540,0.84603,117540.0,117530.0,1.08493435]
[1753143594141,0.88471,117540.0,117530.0,1.08493435]
[1753143599449,0.88471,117540.0,117530.0,1.14604043]
[1753143601045,0.12443,117540.0,117530.0,1.44244043]
[1753143601247,0.03902008,117540.0,117530.0,1.74213435]
[1753143601551,0.3608,117550.0,117540.0,0.2149495]
[1753143601746,0.4808,117550.0,117540.0,1.58942755]
[1753143603254,0.4808,117550.0,117540.0,1.6353268]
[1753143603553,0.12,117550.0,117540.0,1.58942755]
[1753143603759,0.12,117550.0,117540.0,1.65831241]
[1753143603952,0.0860471,117550.0,117540.0,1.70421166]
[1753143604455,0.0860471,117550.0,117540.0,1.95471241]
[1753143604648,0.0860471,117550.0,117540.0,1.95671241]
[1753143604844,0.0860471,117550.0,117540.0,1.95971241]
[1753143605045,0.0860471,117550.0,117540.0,2.00560451]
[1753143616063,0.0860471,117550.0,117540.0,2.36640451]
[1753143616263,0.0860471,117550.0,117540.0,2.32051241]
[1753143616570,0.0318695,117550.0,117540.0,2.32051241]
[1753143616860,0.58017,117570.0,117560.0,0.2850604]
[1753143617053,0.4908,117570.0,117560.0,1.58545974]
[1753143617760,0.50842,117570.0,117560.0,1.59392126]
[1753143618061,0.50842,117570.0,117560.0,1.59492126]
[1753143619067,0.14762,117570.0,117560.0,1.59492126]
[1753143619270,0.14762,117570.0,117560.0,1.57198785]
[1753143619565,0.16937,117570.0,117560.0,1.57198785]
[1753143620164,0.53017,117570.0,117560.0,1.57198785]
[1753143620363,0.53017,117570.0,117560.0,1.59492136]
[1753143620666,0.53017,117570.0,117560.0,1.57198785]
[1753143622971,0.53527,117570.0,117560.0,1.57198785]
[1753143623369,0.568,117570.0,117560.0,1.57198785]
[1753143623563,0.568,117570.0,117560.0,1.2276198]
[1753143624269,0.568,117570.0,117560.0,1.57198785]
[1753143624669,0.59379,117570.0,117560.0,1.2276198]
[1753143627971,0.60354,117570.0,117560.0,0.62663828]
[1753143628275,1.70930405,117570.0,117560.0,0.64192722]
[1753143629270,1.364936,117570.0,117560.0,0.64192722]
[1753143629471,1.70930405,117570.0,117560.0,0.64192722]
[1753143630569,1.364936,117570.0,117560.0,0.64192722]
[1753143630775,1.70930405,117570.0,117560.0,0.64192722]
[1753143631276,1.364936,117570.0,117560.0,0.64192722]
[1753143631472,1.70930405,117570.0,117560.0,0.64192722]
[1753143631976,1.53926805,117570.0,117560.0,0.64192722]
[1753143634275,1.1949,117570.0,117560.0,0.64192722]
[1753143634579,1.70930405,117570.0,117560.0,0.64192722]
[1753143637580,1.70930405,117570.0,117560.0,0.55254722]
[1753143637769,1.70930405,117570.0,117560.0,0.52691722]
[1753143638680,1.70930405,117570.0,117560.0,0.55254722]
[1753143638876,1.70930405,117570.0,117560.0,0.52691722]
[1753143639082,1.7179676,117570.0,117560.0,0.33749425]
[1753143640284,1.7189676,117570.0,117560.0,0.33749425]
[1753143640484,1.7189676,117570.0,117560.0,0.33649425]
[1753143641285,1.7013476,117570.0,117560.0,0.33649425]
[1753143642285,1.7013476,117570.0,117560.0,0.24649425]
[1753143642681,2.04571565,117570.0,117560.0,0.07644385]
[1753143642981,2.04571565,117570.0,117560.0,0.06563385]
[1753143643180,2.04571565,117570.0,117560.0,0.06544385]
[1753143643387,1.7013476,117570.0,117560.0,0.23549425]
[1753143644792,1.7005576,117570.0,117560.0,0.23549425]
[1753143647291,2.21504565,117570.0,117560.0,0.23549425]
[1753143647497,0.1702504,117560.0,117550.0,0.2975947]
[1753143647694,1.3499165,117560.0,117550.0,0.3317347]
[1753143647894,1.3499165,117560.0,117550.0,0.3562847]
[1753143648696,1.3499165,117560.0,117550.0,0.2135654]
[1753143649599,1.3499165,117560.0,117550.0,0.2125654]
[1753143651298,1.3499165,117560.0,117550.0,0.1700522]
[1753143652894,1.3499165,117560.0,117550.0,0.2287422]
[1753143653298,1.3509165,117560.0,117550.0,0.2287422]
[1753143654994,1.3527665,117560.0,117550.0,0.2287422]
[1753143655798,1.00839845,117560.0,117550.0,0.2389222]
[1753143659700,1.3527665,117560.0,117550.0,0.2389222]
[1753143661004,1.3527665,117560.0,117550.0,0.26185323]
[1753143663605,1.9420865,117560.0,117550.0,0.26185323]
[1753143665302,1.76948274,117560.0,117550.0,0.26185323]
[1753143670107,2.02754891,117560.0,117550.0,0.26185323]
[1753143676615,1.51151657,117560.0,117550.0,0.26185323]
[1753143676915,2.02764891,117560.0,117550.0,0.26185323]
[1753143677508,2.02764891,117560.0,117550.0,0.29245682]
[1753143677708,1.76958274,117560.0,117550.0,0.29245682]
[1753143677910,1.18158274,117560.0,117550.0,0.29245682]
[1753143678115,1.76934274,117560.0,117550.0,0.29245682]
[1753143681219,1.76934274,117560.0,117550.0,0.26952579]
[1753143683313,1.18158274,117560.0,117550.0,0.26952579]
[1753143683519,1.76934274,117560.0,117550.0,0.26952579]
[1753143686421,1.18158274,117560.0,117550.0,0.26952579]
[1753143686719,1.76934274,117560.0,117550.0,0.26952579]
[1753143687821,1.2532104,117560.0,117550.0,0.26952579]
[1753143688021,1.76934274,117560.0,117550.0,0.26952579]
[1753143690020,1.76934274,117560.0,117550.0,0.08929359]
[1753143690221,0.1700649,117550.0,117540.0,0.32133459]
[1753143690421,1.42622341,117550.0,117540.0,0.32133459]
[1753143690725,1.42622341,117550.0,117540.0,0.25845459]
[1753143690726,1.16815724,117550.0,117540.0,0.25845459]
[1753143691025,1.16815724,117550.0,117540.0,0.32133459]
[1753143691221,1.16815724,117550.0,117540.0,0.33188459]
[1753143691422,1.16815724,117550.0,117540.0,0.33288459]
[1753143692228,1.16815724,117550.0,117540.0,0.2870181]
[1753143693226,1.16815724,117550.0,117540.0,0.33288459]
[1753143697928,0.48151,117550.0,117540.0,0.37884459]
[1753143698230,0.48151,117550.0,117540.0,0.44544583]
[1753143698429,1.06927,117550.0,117540.0,1.033512]
[1753143698629,1.32733617,117550.0,117540.0,0.77544583]
[1753143699932,1.32733617,117550.0,117540.0,0.72957934]
[1753143700325,1.32733617,117550.0,117540.0,0.39957934]
[1753143700530,1.32733617,117550.0,117540.0,0.72957934]
[1753143702130,1.06927,117550.0,117540.0,0.72957934]
[1753143702331,1.32733617,117550.0,117540.0,0.72957934]
[1753143702724,1.32733617,117550.0,117540.0,0.71957934]
[1753143702924,0.73957617,117550.0,117540.0,0.71957934]
[1753143703128,1.32733617,117550.0,117540.0,0.39957934]
[1753143703633,1.32733617,117550.0,117540.0,0.75957934]
[1753143703836,1.32693617,117550.0,117540.0,0.75957934]
[1753143704534,1.32693617,117550.0,117540.0,0.39957934]
[1753143704834,1.32693617,117550.0,117540.0,0.77957934]
[1753143705636,1.32693617,117550.0,117540.0,0.39957934]
[1753143706035,1.32693617,117550.0,117540.0,0.76957934]
[1753143706336,1.32693617,117550.0,117540.0,0.39957934]
[1753143706636,1.32693617,117550.0,117540.0,0.71957934]
[1753143708450,1.06887,117550.0,117540.0,0.71957934]
[1753143708734,1.32693617,117550.0,117540.0,0.71957934]
[1753143710834,1.32689617,117550.0,117540.0,0.71957934]
[1753143711639,1.32689617,117550.0,117540.0,0.39957934]
[1753143712333,1.32689617,117550.0,117540.0,0.73957934]
[1753143712638,1.32689617,117550.0,117540.0,0.72957934]
[1753143713941,1.32689617,117550.0,117540.0,0.39957934]
[1753143714134,1.32689617,117550.0,117540.0,0.77957934]
[1753143716143,1.32689617,117550.0,117540.0,0.49957934]
[1753143716332,1.58496234,117550.0,117540.0,0.49957934]
[1753143720343,1.58496234,117550.0,117540.0,0.53020671]
[1753143721338,1.75502724,117550.0,117540.0,0.53020671]
[1753143721845,1.75502724,117550.0,117540.0,0.43020671]
[1753143726342,2.01309341,117550.0,117540.0,0.26457567]
[1753143726549,2.01309341,117550.0,117540.0,0.03162737]
[1753143726845,2.0808164,117550.0,117540.0,0.001]
[1753143727144,0.1700793,117540.0,117530.0,0.03062737]
[1753143727343,1.41507781,117540.0,117530.0,0.03062737]
[1753143727543,0.1700938,117530.0,117520.0,0.04586649]
[1753143727848,2.00277231,117530.0,117520.0,0.04586649]
[1753143729147,1.91726374,117530.0,117520.0,0.04986649]
[1753143730047,1.91726374,117530.0,117520.0,0.004]
[1753143731248,1.91726374,117530.0,117520.0,0.006]
[1753143732151,1.91726374,117530.0,117520.0,0.06589]
[1753143733652,1.91726374,117530.0,117520.0,0.2359983]
[1753143733853,1.91726374,117530.0,117520.0,0.06589]
[1753143734553,1.57291877,117530.0,117520.0,0.06589]
[1753143735254,1.91726374,117530.0,117520.0,0.06589]
[1753143735655,1.57291877,117530.0,117520.0,0.06589]
[1753143737154,1.91726374,117530.0,117520.0,0.06589]
[1753143737756,1.57291877,117530.0,117520.0,0.06589]
[1753143738766,1.91726374,117530.0,117520.0,0.06589]
[1753143739065,1.91726374,117530.0,117520.0,0.006]
[1753143740468,0.1701083,117520.0,117510.0,0.05724]
[1753143740663,1.32959824,117520.0,117510.0,0.05724]
[1753143742264,0.6409083,117520.0,117510.0,0.06024]
[1753143742464,1.33059824,117520.0,117510.0,0.06324]
[1753143742662,1.33059824,117520.0,117510.0,0.2438628]
[1753143743259,1.33888948,117520.0,117510.0,0.2438628]
[1753143744165,0.65019954,117520.0,117510.0,0.2438628]
[1753143744465,0.98625327,117520.0,117510.0,0.6291528]
[1753143744769,1.57401327,117520.0,117510.0,0.2891528]
[1753143747268,0.98625327,117520.0,117510.0,0.2891528]
[1753143747471,1.57405327,117520.0,117510.0,0.2891528]
[1753143748069,0.98625327,117520.0,117510.0,0.2891528]
[1753143748271,1.57405327,117520.0,117510.0,0.2891528]
[1753143749068,0.98625327,117520.0,117510.0,0.2891528]
[1753143749268,1.57405327,117520.0,117510.0,0.2891528]
[1753143750065,1.57401327,117520.0,117510.0,0.2891528]
[1753143750666,0.98625327,117520.0,117510.0,0.2891528]
[1753143750873,1.57401327,117520.0,117510.0,0.2891528]
[1753143751268,0.98625327,117520.0,117510.0,0.2891528]
[1753143751468,1.57401327,117520.0,117510.0,0.2891528]
[1753143751672,0.98625327,117520.0,117510.0,0.2891528]
[1753143751873,1.57401327,117520.0,117510.0,0.2891528]
[1753143752271,0.98625327,117520.0,117510.0,0.31205932]
[1753143752574,1.57401327,117520.0,117510.0,0.31205932]
[1753143753078,0.98625327,117520.0,117510.0,0.31205932]
[1753143753474,1.57401327,117520.0,117510.0,0.31205932]
[1753143754077,0.6419083,117520.0,117510.0,0.31205932]
[1753143754277,0.6419083,117520.0,117510.0,0.33087319]
[1753143754474,1.57401327,117520.0,117510.0,0.33087319]
[1753143754675,0.98625327,117520.0,117510.0,0.33087319]
[1753143755066,1.57401327,117520.0,117510.0,0.33087319]
[1753143756778,0.98625327,117520.0,117510.0,0.33087319]
[1753143756981,1.57401327,117520.0,117510.0,0.33087319]
[1753143757381,0.98625327,117520.0,117510.0,0.33087319]
[1753143757581,1.57401327,117520.0,117510.0,0.33087319]
[1753143758074,1.57401327,117520.0,117510.0,0.71087319]
[1753143758375,1.57401327,117520.0,117510.0,0.33087319]
[1753143758582,1.2296683,117520.0,117510.0,0.67087319]
[1753143758776,1.57401327,117520.0,117510.0,0.33087319]
[1753143759176,1.57401327,117520.0,117510.0,0.71087319]
[1753143759476,1.57401327,117520.0,117510.0,0.33087319]
[1753143759681,1.57401327,117520.0,117510.0,0.69087319]
[1753143759881,1.57401327,117520.0,117510.0,0.33087319]
[1753143761185,1.74608638,117520.0,117510.0,0.33087319]
[1753143761386,1.74608638,117520.0,117510.0,0.36146611]
[1753143761578,1.15832638,117520.0,117510.0,0.36146611]
[1753143761878,1.74604638,117520.0,117510.0,0.36146611]